[Event "41st Jacques-Lemans-Open 2022"]
[Site "St. Veit/Glan"]
[Date "2022.07.14"]
[Round "7.30"]
[White "Holzmann, Herbert"]
[Black "Wegerer, Fred"]
[Result "1-0"]
[ECO "A04"]
[WhiteElo "1979"]
[BlackElo "2137"]
[Annotator "ChessBase"]
[PlyCount "147"]
[EventDate "2022.07.09"]
[EventType "swiss"]
[EventCountry "AUT"]
[SourceTitle "playchess.com"]
[Source "ChessBase"]
[SourceQuality "1"]
[TimeControl "40/5400+30:1800+30"]

1. Nf3 {[%emt 0:00:03]} g6 {[%emt 0:00:19]} 2. e4 {[%emt 0:00:44]} Bg7 {[%emt 0:00:47]} 3. d4 {[%emt 0:00:18]} c5 {[%emt 0:02:21]} 4. Nc3 {[%emt 0:04:34]} cxd4 {[%emt 0:00:21]} 5. Nxd4 {[%emt 0:00:15]} Nc6 {[%emt 0:00:15]} 6. Be3 {[%emt 0:01:59]} d6 {[%emt 0:04:02]} 7. Bc4 {[%emt 0:01:50]} Nf6 {[%emt 0:01:18]} 8. Qd2 {[%emt 0:07:13]} Bd7 {[%emt 0:04:14]} 9. f3 {[%emt 0:01:25]} h5 {[%emt 0:10:39]} 10. Bb3 {[%emt 0:06:55]} Na5 {[%emt 0:01:46]} 11. Ndb5 {[%emt 0:09:22]} a6 {[%emt 0:26:31]} 12. Nd4 {[%emt 0:01:29]} Rc8 {[%emt 0:00:19]} 13. Nde2 {[%emt 0:07:03]} Nc4 {[%emt 0:01:23]} 14. Bxc4 {[%emt 0:02:14]} Rxc4 {[%emt 0:00:04]} 15. O-O {[%emt 0:02:20]} b5 {[%emt 0:00:26]} 16. b3 {[%emt 0:04:13]} Rc8 {[%emt 0:00:50]} 17. Rac1 {[%emt 0:00:18]} b4 {[%emt 0:01:55]} 18. Nb1 {[%emt 0:01:46]} a5 {[%emt 0:04:21]} 19. c3 {[%emt 0:00:18]} bxc3 {[%emt 0:06:01]} 20. Nbxc3 {[%emt 0:00:20]} O-O {[%emt 0:00:38]} 21. Rfd1 {[%emt 0:02:01]} Ra8 {[%emt 0:04:13]} 22. Nd4 {[%emt 0:01:25]} Qb8 {[%emt 0:01:27]} 23. Na4 {[%emt 0:07:06]} Qb7 {[%emt 0:04:16]} 24. Nb2 {[%emt 0:00:17]} Rfb8 {[%emt 0:02:51]} 25. Rc2 {[%emt 0:03:09]} a4 {[%emt 0:05:34]} 26. Nxa4 {[%emt 0:03:12]} Bxa4 {[%emt 0:00:08]} 27. bxa4 {[%emt 0:00:11]} Rxa4 {[%emt 0:00:11]} 28. Rdc1 {[%emt 0:00:42]} Qa6 {[%emt 0:12:49]} 29. Rc6 {[%emt 0:01:20]} Qa8 {[%emt 0:01:02]} 30. R1c2 {[%emt 0:00:44]} Kh7 {[%emt 0:01:20]} 31. Rc7 {[%emt 0:01:31]} Rb1+ {[%emt 0:00:43]} 32. Kf2 {[%emt 0:00:47]} Nxe4+ {[%emt 0:01:20]} 33. fxe4 {[%emt 0:00:42]} Qxe4 {[%emt 0:00:02]} 34. Nf3 {[%emt 0:01:03]} Bf6 {[%emt 0:00:59]} 35. Rc1 {[%emt 0:03:59]} Rb5 {[%emt 0:00:32]} 36. Qc2 {[%emt 0:00:34]} Rb2 {[%emt 0:00:34]} 37. Qxb2 {[%emt 0:00:09]} Bxb2 {[%emt 0:00:01]} 38. Ng5+ {[%emt 0:00:11]} Kg7 {[%emt 0:00:07]} 39. Nxe4 {[%emt 0:00:09]} Bxc1 {[%emt 0:00:11]} 40. Bxc1 {[%emt 0:05:18]} Rxe4 {[%emt 0:00:05]} 41. a4 {[%emt 0:31:56]} Rxa4 {[%emt 0:30:48]} 42. Rxe7 {[%emt 0:00:08]} Kf6 {[%emt 0:00:57]} 43. Re2 {[%emt 0:02:00]} g5 {[%emt 0:00:49]} 44. h3 {[%emt 0:01:33]} g4 {[%emt 0:01:20]} 45. h4 {[%emt 0:00:27]} Kf5 {[%emt 0:01:10]} 46. g3 {[%emt 0:01:17]} f6 {[%emt 0:00:59]} 47. Kf1 {[%emt 0:03:39]} Ra1 {[%emt 0:00:00]} 48. Re1 {[%emt 0:00:00]} d5 {[%emt 0:00:00]} 49. Bf4 {[%emt 0:00:00]} Ra3 {[%emt 0:00:00]} 50. Re2 {[%emt 0:00:00]} d4 {[%emt 0:00:00]} 51. Rf2 {[%emt 0:00:00]} Ke4 {[%emt 0:00:00]} 52. Kg2 {[%emt 0:00:00]} Ra6 {[%emt 0:00:00]} 53. Bh6 {[%emt 0:00:00]} Kd3 {[%emt 0:00:00]} 54. Bg7 {[%emt 0:00:00]} f5 {[%emt 0:00:00]} 55. Rxf5 {[%emt 0:00:00]} Rg6 {[%emt 0:00:00]} 56. Bf6 {[%emt 0:00:00]} Ke3 {[%emt 0:00:00]} 57. Bg5+ {[%emt 0:00:00]} Ke2 {[%emt 0:00:00]} 58. Re5+ {[%emt 0:00:00]} Kd3 {[%emt 0:00:00]} 59. Bf4 {[%emt 0:00:00]} Rc6 {[%emt 0:00:00]} 60. Rxh5 {[%emt 0:00:00]} Rc2+ {[%emt 0:00:00]} 61. Kf1 {[%emt 0:00:00]} Ke4 {[%emt 0:00:00]} 62. Re5+ {[%emt 0:00:00]} Kf3 {[%emt 0:00:00]} 63. Re1 {[%emt 0:00:00]} Rf2+ {[%emt 0:00:00]} 64. Kg1 {[%emt 0:00:00]} Rg2+ {[%emt 0:00:00]} 65. Kh1 {[%emt 0:00:00]} Rc2 {[%emt 0:00:00]} 66. Rf1+ {[%emt 0:00:00]} Ke2 {[%emt 0:00:00]} 67. Rg1 {[%emt 0:00:00]} Kf3 {[%emt 0:00:09]} 68. Rd1 {[%emt 0:00:00]} Rc4 {[%emt 0:00:16]} 69. Rd2 {[%emt 0:00:00]} Ra4 {[%emt 0:00:41]} 70. h5 {[%emt 0:00:00]} Ra5 {[%emt 0:03:20]} 71. h6 {[%emt 0:00:00]} d3 {[%emt 0:00:56]} 72. Rxd3+ {[%emt 0:00:00]} Kf2 {[%emt 0:00:01]} 73. Rd2+ {[%emt 0:00:00]} Kf1 {[%emt 0:00:05]} 74. h7 {[%emt 0:00:34]} 1-0

[Event "41st Jacques-Lemans-Open 2022"]
[Site "St. Veit/Glan"]
[Date "2022.07.14"]
[Round "7.31"]
[White "Zaytsev, Alexander"]
[Black "Wiedner, Robert"]
[Result "1/2-1/2"]
[ECO "B29"]
[WhiteElo "1963"]
[BlackElo "2133"]
[Annotator "ChessBase"]
[PlyCount "39"]
[EventDate "2022.07.09"]
[EventType "swiss"]
[EventCountry "AUT"]
[SourceTitle "playchess.com"]
[Source "ChessBase"]
[SourceQuality "1"]
[TimeControl "40/5400+30:1800+30"]

1. e4 {[%emt 0:00:03]} c5 {[%emt 0:00:09]} 2. Nf3 {[%emt 0:00:08]} Nf6 {[%emt 0:00:07]} 3. e5 {[%emt 0:00:10]} Nd5 {[%emt 0:00:06]} 4. Nc3 {[%emt 0:00:12]} e6 {[%emt 0:02:30]} 5. Nxd5 {[%emt 0:00:09]} exd5 {[%emt 0:00:07]} 6. d4 {[%emt 0:00:11]} d6 {[%emt 0:00:08]} 7. Bb5+ {[%emt 0:01:02]} Nc6 {[%emt 0:00:07]} 8. O-O {[%emt 0:00:41]} Be7 {[%emt 0:00:14]} 9. Be3 {[%emt 0:11:21]} Qb6 {[%emt 0:04:58]} 10. exd6 {[%emt 0:11:58]} Bxd6 {[%emt 0:01:13]} 11. dxc5 {[%emt 0:02:59]} Bxh2+ {[%emt 0:00:17]} 12. Kxh2 {[%emt 0:01:49]} Qxb5 {[%emt 0:00:09]} 13. Qxd5 {[%emt 0:01:15]} Qxb2 {[%emt 0:00:13]} 14. Nd4 {[%emt 0:26:40]} O-O {[%emt 0:00:34]} 15. Nxc6 {[%emt 0:03:42]} bxc6 {[%emt 0:00:09]} 16. Qxc6 {[%emt 0:00:58]} Bb7 {[%emt 0:00:22]} 17. Qd6 {[%emt 0:05:11]} Rad8 {[%emt 0:00:29]} 18. Qc7 {[%emt 0:01:47]} Rc8 {[%emt 0:00:11]} 19. Qf4 {[%emt 0:00:58]} Qxc2 {[%emt 0:01:18]} 20. Rfc1 {[%emt 0:01:28]} 1/2-1/2

[Event "41st Jacques-Lemans-Open 2022"]
[Site "St. Veit/Glan"]
[Date "2022.07.14"]
[Round "7.32"]
[White "Wendl, Philipp"]
[Black "Hafner, Robert"]
[Result "1-0"]
[ECO "D18"]
[WhiteElo "2097"]
[BlackElo "1933"]
[Annotator "ChessBase"]
[PlyCount "97"]
[EventDate "2022.07.09"]
[EventType "swiss"]
[EventCountry "AUT"]
[SourceTitle "playchess.com"]
[Source "ChessBase"]
[SourceQuality "1"]
[TimeControl "40/5400+30:1800+30"]

1. d4 {[%emt 0:00:02]} d5 {[%emt 0:00:11]} 2. c4 {[%emt 0:00:05]} c6 {[%emt 0:00:06]} 3. Nc3 {[%emt 0:00:12]} Nf6 {[%emt 0:00:39]} 4. Nf3 {[%emt 0:00:13]} dxc4 {[%emt 0:00:12]} 5. a4 {[%emt 0:00:11]} Bf5 {[%emt 0:00:10]} 6. e3 {[%emt 0:00:21]} e6 {[%emt 0:00:10]} 7. Bxc4 {[%emt 0:00:22]} Bb4 {[%emt 0:00:17]} 8. O-O {[%emt 0:01:25]} Nbd7 {[%emt 0:00:07]} 9. Nh4 {[%emt 0:01:19]} O-O {[%emt 0:00:13]} 10. Nxf5 {[%emt 0:03:23]} exf5 {[%emt 0:00:06]} 11. Qb3 {[%emt 0:02:08]} Qb6 {[%emt 0:02:47]} 12. Rd1 {[%emt 0:03:19]} a5 {[%emt 0:08:33]} 13. Bd2 {[%emt 0:04:27]} g6 {[%emt 0:05:30]} 14. Ne2 {[%emt 0:09:24]} Bxd2 {[%emt 0:06:54]} 15. Rxd2 {[%emt 0:00:19]} Qxb3 {[%emt 0:00:29]} 16. Bxb3 {[%emt 0:00:08]} Nb6 {[%emt 0:02:44]} 17. Nf4 {[%emt 0:06:56]} Rfd8 {[%emt 0:03:44]} 18. Nd3 {[%emt 0:05:03]} Nbd5 {[%emt 0:11:31]} 19. Re1 {[%emt 0:03:05]} Rac8 {[%emt 0:13:38]} 20. Rdd1 {[%emt 0:06:10]} Rc7 {[%emt 0:00:39]} 21. f3 {[%emt 0:01:09]} Re7 {[%emt 0:05:03]} 22. Ne5 {[%emt 0:03:15]} Rde8 {[%emt 0:12:35]} 23. Rc1 {[%emt 0:17:37]} Nb4 {[%emt 0:08:25]} 24. Red1 {[%emt 0:15:13]} Nd7 {[%emt 0:03:24]} 25. Nc4 {[%emt 0:00:39]} b6 {[%emt 0:01:28]} 26. Nd6 {[%emt 0:05:09]} Rd8 {[%emt 0:00:11]} 27. e4 {[%emt 0:00:43]} fxe4 {[%emt 0:00:36]} 28. fxe4 {[%emt 0:00:24]} Kg7 {[%emt 0:01:20]} 29. Rd2 {[%emt 0:07:04]} f6 {[%emt 0:01:21]} 30. Re1 {[%emt 0:00:20]} Nf8 {[%emt 0:02:55]} 31. Nc4 {[%emt 0:00:08]} Nd7 {[%emt 0:00:09]} 32. Nd6 {[%emt 0:00:10]} Nf8 {[%emt 0:02:26]} 33. Nc4 {[%emt 0:00:08]} Nd7 {[%emt 0:00:12]} 34. e5 {[%emt 0:01:43]} fxe5 {[%emt 0:06:43]} 35. dxe5 {[%emt 0:00:09]} Rf8 {[%emt 0:01:10]} 36. Bd1 {[%emt 0:03:53]} Nd5 {[%emt 0:01:01]} 37. Bf3 {[%emt 0:00:30]} Rf4 {[%emt 0:00:19]} 38. b3 {[%emt 0:00:27]} Nc5 {[%emt 0:00:48]} 39. Bxd5 {[%emt 0:01:29]} cxd5 {[%emt 0:00:07]} 40. Rxd5 {[%emt 0:00:02]} Nxb3 {[%emt 0:00:32]} 41. Nxb6 {[%emt 0:03:01]} Rb4 {[%emt 0:01:12]} 42. Rd6 {[%emt 0:05:22]} Rd4 {[%emt 0:10:33]} 43. Nd5 {[%emt 0:02:00]} Re8 {[%emt 0:05:32]} 44. Rd7+ {[%emt 0:01:37]} Kh6 {[%emt 0:02:50]} 45. e6 {[%emt 0:00:49]} Nc5 {[%emt 0:01:06]} 46. Rxh7+ {[%emt 0:00:55]} Kxh7 {[%emt 0:00:07]} 47. Nf6+ {[%emt 0:00:04]} Kh6 {[%emt 0:08:05]} 48. Nxe8 {[%emt 0:00:06]} Rxa4 {[%emt 0:00:03]} 49. Nf6 {[%emt 0:04:22]} 1-0

[Event "41st Jacques-Lemans-Open 2022"]
[Site "St. Veit/Glan"]
[Date "2022.07.14"]
[Round "7.33"]
[White "Rempe, Jonas"]
[Black "Guetz, Wolfgang"]
[Result "1/2-1/2"]
[ECO "B01"]
[WhiteElo "1861"]
[BlackElo "2034"]
[Annotator "ChessBase"]
[PlyCount "39"]
[EventDate "2022.07.09"]
[EventType "swiss"]
[EventCountry "AUT"]
[SourceTitle "playchess.com"]
[Source "ChessBase"]
[SourceQuality "1"]
[TimeControl "40/5400+30:1800+30"]

1. e4 {[%emt 0:00:05]} d5 {[%emt 0:00:03]} 2. exd5 {[%emt 0:00:06]} Nf6 {[%emt 0:00:06]} 3. Nf3 {[%emt 0:00:05]} Nxd5 {[%emt 0:00:14]} 4. d4 {[%emt 0:02:00]} Bf5 {[%emt 0:04:51]} 5. c4 {[%emt 0:10:24]} Nb6 {[%emt 0:01:59]} 6. Nc3 {[%emt 0:02:03]} e6 {[%emt 0:01:31]} 7. Be3 {[%emt 0:04:09]} Be7 {[%emt 0:04:15]} 8. Bd3 {[%emt 0:04:45]} Bxd3 {[%emt 0:06:59]} 9. Qxd3 {[%emt 0:00:03]} c5 {[%emt 0:07:43]} 10. Rd1 {[%emt 0:12:09]} Nc6 {[%emt 0:09:51]} 11. O-O {[%emt 0:07:08]} O-O {[%emt 0:08:43]} 12. Qe2 {[%emt 0:16:53]} cxd4 {[%emt 0:07:11]} 13. Nxd4 {[%emt 0:00:30]} Qc8 {[%emt 0:03:04]} 14. b3 {[%emt 0:03:13]} Bf6 {[%emt 0:07:15]} 15. Ne4 {[%emt 0:02:35]} Bxd4 {[%emt 0:02:50]} 16. Bxd4 {[%emt 0:00:21]} Nxd4 {[%emt 0:00:09]} 17. Rxd4 {[%emt 0:00:04]} Rd8 {[%emt 0:01:43]} 18. Rfd1 {[%emt 0:02:08]} Rxd4 {[%emt 0:04:50]} 19. Rxd4 {[%emt 0:02:04]} Qc7 {[%emt 0:03:05]} 20. Qd2 {[%emt 0:03:26]} 1/2-1/2

[Event "41st Jacques-Lemans-Open 2022"]
[Site "St. Veit/Glan"]
[Date "2022.07.14"]
[Round "7.34"]
[White "Higatsberger, Michael"]
[Black "Navaratnam, Ishaan Quan Tze"]
[Result "1-0"]
[ECO "B30"]
[WhiteElo "2021"]
[BlackElo "1409"]
[Annotator "ChessBase"]
[PlyCount "101"]
[EventDate "2022.07.09"]
[EventType "swiss"]
[EventCountry "AUT"]
[SourceTitle "playchess.com"]
[Source "ChessBase"]
[SourceQuality "1"]
[TimeControl "40/5400+30:1800+30"]

1. e4 {[%emt 0:00:03]} c5 {[%emt 0:00:11]} 2. Nf3 {[%emt 0:00:07]} Nc6 {[%emt 0:00:04]} 3. Bb5 {[%emt 0:00:06]} Nf6 {[%emt 0:00:09]} 4. Bxc6 {[%emt 0:00:12]} dxc6 {[%emt 0:00:08]} 5. d3 {[%emt 0:02:19]} Bg4 {[%emt 0:00:40]} 6. Nbd2 {[%emt 0:00:43]} Nd7 {[%emt 0:00:45]} 7. h3 {[%emt 0:00:30]} Bh5 {[%emt 0:00:05]} 8. g4 {[%emt 0:01:25]} Bg6 {[%emt 0:00:07]} 9. Nc4 {[%emt 0:01:08]} Qc7 {[%emt 0:01:01]} 10. a4 {[%emt 0:00:59]} a5 {[%emt 0:03:30]} 11. Be3 {[%emt 0:01:32]} e5 {[%emt 0:01:12]} 12. Nh4 {[%emt 0:02:33]} f6 {[%emt 0:06:13]} 13. Nxg6 {[%emt 0:18:23]} hxg6 {[%emt 0:00:10]} 14. h4 {[%emt 0:01:43]} Be7 {[%emt 0:03:07]} 15. Qf3 {[%emt 0:03:17]} b5 {[%emt 0:12:27]} 16. Nd2 {[%emt 0:02:07]} Nf8 {[%emt 0:04:35]} 17. h5 {[%emt 0:01:26]} g5 {[%emt 0:10:21]} 18. Nb3 {[%emt 0:05:37]} Ne6 {[%emt 0:06:15]} 19. Qf5 {[%emt 0:01:21]} Nd4 {[%emt 0:00:48]} 20. Bxd4 {[%emt 0:01:10]} cxd4 {[%emt 0:00:25]} 21. Qg6+ {[%emt 0:01:04]} Kf8 {[%emt 0:00:21]} 22. h6 {[%emt 0:02:31]} Rxh6 {[%emt 0:02:35]} 23. Rxh6 {[%emt 0:00:39]} gxh6 {[%emt 0:00:01]} 24. Qxh6+ {[%emt 0:00:21]} Kf7 {[%emt 0:02:19]} 25. Qh7+ {[%emt 0:00:18]} Ke6 {[%emt 0:01:08]} 26. Ke2 {[%emt 0:01:48]} c5 {[%emt 0:01:52]} 27. Qf5+ {[%emt 0:05:27]} Kd6 {[%emt 0:03:35]} 28. axb5 {[%emt 0:03:50]} Qb6 {[%emt 0:19:28]} 29. Nd2 {[%emt 0:03:21]} Qxb5 {[%emt 0:00:34]} 30. Nc4+ {[%emt 0:01:22]} Kc7 {[%emt 0:00:21]} 31. Qe6 {[%emt 0:01:05]} Bd8 {[%emt 0:03:26]} 32. Qd6+ {[%emt 0:07:35]} Kc8 {[%emt 0:00:53]} 33. Rh1 {[%emt 0:00:19]} Ra6 {[%emt 0:01:38]} 34. Qf8 {[%emt 0:00:55]} Qc6 {[%emt 0:01:50]} 35. Rh7 {[%emt 0:09:33]} Qe6 {[%emt 0:04:22]} 36. f3 {[%emt 0:01:57]} Qc6 {[%emt 0:01:27]} 37. Kd2 {[%emt 0:01:39]} a4 {[%emt 0:00:42]} 38. Kc1 {[%emt 0:02:12]} Rb6 {[%emt 0:01:43]} 39. Nxb6+ {[%emt 0:00:37]} Qxb6 {[%emt 0:00:02]} 40. Rh8 {[%emt 0:00:49]} Qa5 {[%emt 0:00:30]} 41. Kb1 {[%emt 0:30:23]} a3 {[%emt 0:35:37]} 42. bxa3 {[%emt 0:03:39]} Qb6+ {[%emt 0:02:44]} 43. Kc1 {[%emt 0:02:26]} Qa5 {[%emt 0:00:21]} 44. Qxd8+ {[%emt 0:00:11]} Qxd8 {[%emt 0:00:11]} 45. Rxd8+ Kxd8 46. Kb2 {[%emt 0:00:45]} Kc7 {[%emt 0:00:39]} 47. Kb3 {[%emt 0:00:08]} Kb6 {[%emt 0:00:31]} 48. Kc4 {[%emt 0:00:22]} Ka5 {[%emt 0:00:20]} 49. Kxc5 {[%emt 0:00:53]} Ka4 {[%emt 0:00:04]} 50. Kc4 {[%emt 0:00:07]} Kxa3 {[%emt 0:00:08]} 51. c3 {[%emt 0:00:04]} 1-0

[Event "41st Jacques-Lemans-Open 2022"]
[Site "St. Veit/Glan"]
[Date "2022.07.14"]
[Round "7.35"]
[White "Elpons, Walter"]
[Black "Wallner, Dieter"]
[Result "0-1"]
[ECO "D00"]
[WhiteElo "1952"]
[BlackElo "2018"]
[Annotator "ChessBase"]
[PlyCount "28"]
[EventDate "2022.07.09"]
[EventType "swiss"]
[EventCountry "AUT"]
[SourceTitle "playchess.com"]
[Source "ChessBase"]
[SourceQuality "1"]
[TimeControl "40/5400+30:1800+30"]

1. d4 {[%emt 0:00:03]} d5 {[%emt 0:00:08]} 2. Bf4 {[%emt 0:00:09]} c5 {[%emt 0:00:11]} 3. e3 {[%emt 0:00:11]} cxd4 {[%emt 0:00:11]} 4. exd4 {[%emt 0:00:06]} Nc6 {[%emt 0:00:12]} 5. c3 {[%emt 0:00:58]} f6 {[%emt 0:00:32]} 6. Bd3 {[%emt 0:01:43]} e5 {[%emt 0:01:30]} 7. Qh5+ {[%emt 0:06:59]} g6 {[%emt 0:02:54]} 8. Bxg6+ {[%emt 0:01:06]} hxg6 {[%emt 0:00:08]} 9. Qxh8 {[%emt 0:00:41]} exf4 {[%emt 0:00:22]} 10. Qxg8 {[%emt 0:01:07]} Qe7+ {[%emt 0:03:03]} 11. Kd2 {[%emt 0:14:34]} Bf5 {[%emt 0:03:51]} 12. Qxd5 {[%emt 0:07:58]} Nxd4 {[%emt 0:26:34]} 13. Nf3 {[%emt 0:11:05]} Qe2+ {[%emt 0:00:10]} 14. Kc1 {[%emt 0:00:55]} Qc2# {[%emt 0:00:04]} 0-1

[Event "41st Jacques-Lemans-Open 2022"]
[Site "St. Veit/Glan"]
[Date "2022.07.14"]
[Round "7.36"]
[White "Fuchs, Patrick"]
[Black "Markun, Ozbej"]
[Result "1-0"]
[ECO "B52"]
[WhiteElo "1990"]
[BlackElo "1915"]
[Annotator "ChessBase"]
[PlyCount "79"]
[EventDate "2022.07.09"]
[EventType "swiss"]
[EventCountry "AUT"]
[SourceTitle "playchess.com"]
[Source "ChessBase"]
[SourceQuality "1"]
[TimeControl "40/5400+30:1800+30"]

1. e4 {[%emt 0:00:06]} c5 {[%emt 0:00:16]} 2. Nf3 {[%emt 0:00:08]} d6 {[%emt 0:00:13]} 3. Bb5+ {[%emt 0:00:07]} Bd7 {[%emt 0:00:08]} 4. Bxd7+ {[%emt 0:00:07]} Nxd7 {[%emt 0:00:08]} 5. O-O {[%emt 0:00:09]} Ngf6 {[%emt 0:00:07]} 6. Qe2 {[%emt 0:00:06]} e6 {[%emt 0:00:25]} 7. c4 {[%emt 0:00:15]} Be7 {[%emt 0:00:10]} 8. Nc3 {[%emt 0:00:53]} O-O {[%emt 0:00:19]} 9. d4 {[%emt 0:00:58]} cxd4 {[%emt 0:00:11]} 10. Nxd4 {[%emt 0:00:02]} a6 {[%emt 0:00:15]} 11. b3 {[%emt 0:07:38]} Qa5 {[%emt 0:00:57]} 12. Bb2 {[%emt 0:00:38]} Rac8 {[%emt 0:01:45]} 13. Rac1 {[%emt 0:00:21]} Rfe8 {[%emt 0:00:28]} 14. Kh1 {[%emt 0:06:25]} Bf8 {[%emt 0:00:29]} 15. f3 {[%emt 0:05:48]} Rc7 {[%emt 0:01:53]} 16. Rfd1 {[%emt 0:04:10]} g6 {[%emt 0:03:57]} 17. Na4 {[%emt 0:06:45]} Qh5 {[%emt 0:12:16]} 18. Re1 {[%emt 0:06:08]} Bh6 {[%emt 0:06:50]} 19. Rcd1 {[%emt 0:00:39]} Bf4 {[%emt 0:01:17]} 20. g4 {[%emt 0:00:17]} Qh4 {[%emt 0:05:36]} 21. Bc1 {[%emt 0:04:09]} Bxc1 {[%emt 0:13:52]} 22. Rxc1 {[%emt 0:00:08]} h5 {[%emt 0:02:14]} 23. Rg1 {[%emt 0:02:39]} hxg4 {[%emt 0:06:31]} 24. fxg4 {[%emt 0:00:22]} Qg5 {[%emt 0:01:10]} 25. Nc3 {[%emt 0:13:08]} d5 {[%emt 0:15:26]} 26. Nf3 {[%emt 0:16:16]} Qf4 {[%emt 0:00:31]} 27. exd5 {[%emt 0:00:12]} exd5 {[%emt 0:06:10]} 28. Nxd5 {[%emt 0:00:09]} Rxe2 {[%emt 0:01:37]} 29. Nxf4 {[%emt 0:00:03]} Rxa2 {[%emt 0:00:25]} 30. g5 {[%emt 0:10:43]} Ne4 {[%emt 0:00:06]} 31. Rg2 {[%emt 0:03:00]} Rxg2 {[%emt 0:02:52]} 32. Kxg2 {[%emt 0:00:02]} Nb6 {[%emt 0:01:34]} 33. Re1 {[%emt 0:01:24]} Nd6 {[%emt 0:00:50]} 34. Rd1 {[%emt 0:00:47]} Nf5 {[%emt 0:00:44]} 35. Rd8+ {[%emt 0:01:08]} Kg7 {[%emt 0:00:44]} 36. Ne5 {[%emt 0:00:54]} Ne7 {[%emt 0:03:14]} 37. Rd6 {[%emt 0:03:33]} Nbc8 {[%emt 0:01:54]} 38. Rf6 {[%emt 0:02:42]} Ng8 {[%emt 0:04:34]} 39. Nd5 {[%emt 0:00:50]} Rc5 40. Rxf7+ 1-0

[Event "41st Jacques-Lemans-Open 2022"]
[Site "St. Veit/Glan"]
[Date "2022.07.15"]
[Round "8.1"]
[White "Bosiocic, Marin"]
[Black "Gschiel, Alexander"]
[Result "1-0"]
[ECO "A06"]
[WhiteElo "2549"]
[BlackElo "2215"]
[Annotator "ChessBase"]
[PlyCount "87"]
[EventDate "2022.07.09"]
[EventType "swiss"]
[EventCountry "AUT"]
[SourceTitle "playchess.com"]
[Source "ChessBase"]
[SourceQuality "1"]
[TimeControl "40/5400+30:1800+30"]

1. Nf3 {[%emt 0:00:08]} d5 {[%emt 0:00:15]} 2. g3 {[%emt 0:00:08]} Nf6 {[%emt 0:00:11]} 3. Bg2 {[%emt 0:00:08]} e6 {[%emt 0:00:12]} 4. O-O {[%emt 0:00:08]} Be7 {[%emt 0:00:15]} 5. c4 {[%emt 0:00:07]} O-O {[%emt 0:00:40]} 6. b3 {[%emt 0:00:11]} d4 {[%emt 0:01:13]} 7. e3 {[%emt 0:00:18]} c5 {[%emt 0:00:47]} 8. Ne5 {[%emt 0:00:10]} Qc7 {[%emt 0:03:25]} 9. f4 {[%emt 0:00:11]} Nbd7 {[%emt 0:08:58]} 10. Nd3 {[%emt 0:01:21]} e5 {[%emt 0:03:04]} 11. Bb2 {[%emt 0:00:21]} Re8 {[%emt 0:06:03]} 12. g4 {[%emt 0:00:44]} exf4 {[%emt 0:06:30]} 13. g5 {[%emt 0:06:54]} fxe3 {[%emt 0:05:01]} 14. dxe3 {[%emt 0:01:13]} Ne4 {[%emt 0:06:21]} 15. Bxe4 {[%emt 0:34:09]} Bxg5 {[%emt 0:01:53]} 16. Bd5 {[%emt 0:05:10]} Bxe3+ {[%emt 0:03:37]} 17. Kh1 {[%emt 0:00:07]} Nf6 {[%emt 0:00:27]} 18. Rxf6 {[%emt 0:01:30]} gxf6 {[%emt 0:02:50]} 19. Qf3 {[%emt 0:00:30]} Bg5 {[%emt 0:07:07]} 20. Nd2 {[%emt 0:02:29]} Re3 {[%emt 0:07:04]} 21. Qf2 {[%emt 0:00:54]} Bg4 {[%emt 0:07:20]} 22. Rg1 {[%emt 0:03:37]} h5 {[%emt 0:06:17]} 23. Ne4 {[%emt 0:05:04]} Rxd3 {[%emt 0:08:04]} 24. Nxf6+ {[%emt 0:02:15]} Bxf6 {[%emt 0:06:00]} 25. Qxf6 {[%emt 0:01:28]} Rh3 {[%emt 0:02:21]} 26. Qg6+ {[%emt 0:22:09]} Kf8 {[%emt 0:00:03]} 27. Qh6+ {[%emt 0:01:09]} Ke7 {[%emt 0:00:34]} 28. Qd2 {[%emt 0:02:13]} Qe5 {[%emt 0:01:58]} 29. Rf1 {[%emt 0:05:44]} f6 {[%emt 0:00:41]} 30. Ba3 {[%emt 0:00:33]} Rc8 {[%emt 0:00:45]} 31. Bxb7 {[%emt 0:00:34]} Rc7 {[%emt 0:01:17]} 32. Bd5 {[%emt 0:00:13]} Kd6 {[%emt 0:04:08]} 33. Bc1 {[%emt 0:01:09]} Re7 {[%emt 0:00:36]} 34. b4 {[%emt 0:00:46]} Qe3 {[%emt 0:00:31]} 35. bxc5+ {[%emt 0:00:54]} Kd7 {[%emt 0:00:05]} 36. Qb2 {[%emt 0:01:16]} Bf3+ {[%emt 0:01:25]} 37. Bxf3 {[%emt 0:00:26]} Qe5 {[%emt 0:00:12]} 38. Qb7+ {[%emt 0:01:36]} Kd8 {[%emt 0:00:01]} 39. Qa8+ {[%emt 0:00:25]} Kc7 {[%emt 0:00:25]} 40. Qxa7+ {[%emt 0:00:22]} Kd8 {[%emt 0:00:44]} 41. Qa8+ {[%emt 0:30:15]} Kc7 {[%emt 0:02:20]} 42. Bf4 {[%emt 0:00:00]} Qxf4 {[%emt 0:01:14]} 43. Qa5+ {[%emt 0:00:00]} Kb8 {[%emt 0:03:02]} 44. Qd8+ 1-0